bitfinex-derivatives/quotes_SOLF0:USTF0_20251202
["timestamp","ask_amount","ask_price","bid_price","bid_amount"]
[1764692151019,0.04898405,138.19,138.18,3.59]
[1764692152121,0.04898405,138.19,138.16,0.05426767]
[1764692154227,63.90898405,138.19,138.16,0.05426767]
[1764692154418,8.71576281,138.18,138.16,0.05426767]
[1764692154618,63.90898405,138.19,138.16,0.05426767]
[1764692155111,0.04898405,138.19,138.16,3.64426767]
[1764692155319,0.04898405,138.19,138.17,5.3155743]
[1764692155512,0.04898405,138.19,138.17,3.59]
[1764692155827,8.71576281,138.31,138.19,3.59]
[1764692156124,8.71576281,138.31,138.25,1.72442271]
[1764692156326,8.71576281,138.31,138.23,3.59]
[1764692156525,101.2268,138.3,138.24,1.72476087]
[1764692156715,8.76672559,138.28,138.26,0.0457184]
[1764692156917,101.2231,138.31,138.26,0.0457184]
[1764692156918,8.90341166,138.44,138.28,3.59]
[1764692157117,8.90341166,138.48,138.38,3.59]
[1764692157319,8.71576281,138.52,138.41,3.59]
[1764692157523,8.71576281,138.52,138.45,1.71622787]
[1764692157717,8.71576281,138.52,138.46,1.71622787]
[1764692158017,8.71576281,138.49,138.39,10.02390056]
[1764692158215,109.80666281,138.49,138.42,1.71639814]
[1764692158422,101.0947,138.48,138.42,1.71639814]
[1764692158824,101.0947,138.48,138.43,5.33379749]
[1764692159014,0.05370508,138.47,138.44,0.05106837]
[1764692159218,101.15800508,138.47,138.44,0.05106837]
[1764692159724,101.15800508,138.47,138.36,12.99585149]
[1764692159725,101.1239,138.44,138.36,6.43390056]
[1764692160026,101.1394,138.42,138.35,3.59]
[1764692160328,101.1825,138.36,138.3,6.43390056]
[1764692160515,101.1825,138.36,138.27,12.99585149]
[1764692160516,73.07576281,138.37,138.27,3.59]
[1764692160721,0.05012307,138.34,138.29,5.30883986]
[1764692160923,0.05012307,138.34,138.3,5.34507514]
[1764692161225,0.05012307,138.34,138.23,6.43390056]
[1764692161226,8.71576281,138.31,138.23,6.43390056]
[1764692161529,0.05158433,138.28,138.25,3.59]
[1764692161833,0.05158433,138.28,138.23,6.43390056]
[1764692161834,0.05158433,138.28,138.27,3.59]
[1764692162130,8.71576281,138.4,138.28,3.59]
[1764692162331,73.07576281,138.4,138.32,1.71891222]
[1764692162527,8.71576281,138.39,138.33,7.06947297]
[1764692162717,8.71576281,138.39,138.3,6.44592084]
[1764692162921,0.04662166,138.36,138.33,0.04719981]
[1764692163122,8.76238447,138.36,138.33,0.04719981]
[1764692163324,10.20238447,138.36,138.28,3.59]
[1764692163524,0.04662166,138.36,138.29,10.64672775]
[1764692163732,8.71576281,138.4,138.32,3.59]
[1764692164135,73.11576281,138.4,138.33,7.05253438]
[1764692164430,8.71576281,138.37,138.27,6.44592084]
[1764692164631,8.71576281,138.37,138.28,7.05750509]
[1764692164836,0.05174522,138.33,138.29,1.71700187]
[1764692165032,0.05174522,138.33,138.28,1.71700187]
[1764692165332,0.05174522,138.33,138.3,1.71700187]
[1764692165535,0.05174522,138.33,138.29,5.30700187]
[1764692165730,0.05174522,138.33,138.3,5.30608925]
[1764692165921,101.105,138.47,138.32,3.59]
[1764692165922,8.71576281,138.42,138.32,3.59]
[1764692166125,8.71576281,138.42,138.33,1.7143901]
[1764692166532,8.71576281,138.39,138.28,6.44592084]
[1764692166732,8.71576281,138.39,138.31,1.71501852]
[1764692166932,8.71576281,138.39,138.34,0.05237903]
[1764692167237,0.05404374,138.36,138.34,0.05237903]
[1764692167426,73.20980655,138.36,138.27,3.59]
[1764692167624,8.71576281,138.33,138.23,3.59]
[1764692167931,101.2117,138.32,138.25,1.71597809]
[1764692168133,8.71576281,138.3,138.25,1.71597809]
[1764692168435,0.05287429,138.29,138.25,3.59]
[1764692168634,0.05287429,138.29,138.27,3.58]
[1764692168835,0.05287429,138.29,138.26,1.71588452]
[1764692168836,8.71576281,138.37,138.28,5.29521025]
[1764692169023,73.17576281,138.37,138.3,1.71521025]
[1764692169328,73.17576281,138.37,138.28,3.58]
[1764692169529,73.17576281,138.37,138.24,6.44592084]
[1764692169530,174.35186281,138.37,138.24,10.02592084]
[1764692169840,73.17576281,138.37,138.29,1.71397798]
[1764692170132,0.04978394,138.32,138.3,5.29397798]
[1764692170322,0.04587284,138.32,138.31,5.29397798]
[1764692170523,109.88766281,138.38,138.3,0.04901309]
[1764692170728,101.176,138.37,138.3,0.04901309]
[1764692171128,6.5054,138.35,138.3,0.04901309]
[1764692171436,0.05320435,138.34,138.3,0.04901309]
[1764692171732,6.55900435,138.34,138.3,0.04901309]
[1764692172037,101.25280435,138.34,138.3,0.04901309]
[1764692172341,0.05320435,138.34,138.3,0.04901309]
[1764692172632,64.46,138.33,138.3,0.04901309]
[1764692173332,0.05320435,138.34,138.3,0.04901309]
[1764692174134,0.05320435,138.34,138.3,3.62901309]
[1764692174725,101.0744,138.51,138.32,3.58]
[1764692174927,8.71576281,138.45,138.34,1.71164072]
[1764692175225,101.1461,138.41,138.32,3.58]
[1764692175534,165.6461,138.41,138.33,1.71074431]
[1764692175738,0.0515544,138.38,138.36,0.05556549]
[1764692177339,0.0515544,138.38,138.36,3.63556549]
[1764692177741,0.0515544,138.38,138.36,0.05556549]
[1764692178832,0.0515544,138.38,138.36,3.63556549]
[1764692179036,165.5759,138.46,138.37,5.28790934]
[1764692179236,64.46,138.46,138.38,1.70790934]
[1764692179432,64.46,138.46,138.37,3.58]
[1764692179635,6.501,138.44,138.38,1.7065113]
[1764692179940,0.04696118,138.42,138.4,0.05294297]
[1764692181237,0.04696118,138.42,138.4,3.63294297]
[1764692181543,0.04696118,138.42,138.41,5.28281514]
[1764692181736,0.04696118,138.42,138.41,3.58]
[1764692182039,64.42,138.48,138.41,3.58]
[1764692182237,64.42,138.48,138.42,1.70228715]
[1764692182433,64.4,138.52,138.42,5.28228715]
[1764692182628,64.4,138.52,138.44,1.70228715]
[1764692182939,0.04602766,138.49,138.47,0.05468166]
[1764692183340,0.04602766,138.49,138.47,3.63468166]
[1764692184129,64.38,138.55,138.48,3.58]
[1764692184330,14.5558245,138.59,138.48,3.58]
[1764692184331,64.38,138.56,138.48,3.58]
[1764692184942,14.5558245,138.59,138.5,3.58]
[1764692185140,14.5558245,138.59,138.43,6.44592084]
[1764692185141,115.5706245,138.59,138.43,10.02592084]
[1764692185439,101.0436,138.55,138.53,0.04786978]
[1764692185633,101.0419,138.56,138.44,3.58]
[1764692185829,0.05529357,138.55,138.53,0.05097572]
[1764692186037,101.0419,138.56,138.44,3.58]
[1764692186242,101.0419,138.56,138.49,1.69131578]
[1764692186437,101.0451,138.55,138.49,0.05091364]
[1764692186642,0.05347706,138.54,138.49,3.63091364]
[1764692186841,0.05347706,138.54,138.5,3.63344743]
[1764692187037,0.04600797,138.53,138.51,3.63375706]
[1764692187242,64.36,138.61,138.52,1.68601414]
[1764692187444,6.4914,138.64,138.54,3.58]
[1764692187642,100.9866,138.63,138.54,3.58]
[1764692187840,165.3416,138.64,138.54,3.58]
[1764692188041,6.4926,138.62,138.54,3.58]
[1764692188242,100.9529,138.68,138.58,3.58]
[1764692188439,100.9593,138.67,138.58,3.58]
[1764692188644,100.9529,138.68,138.58,3.58]
[1764692188947,115.4929245,138.7,138.58,3.58]
[1764692189145,115.4929245,138.7,138.59,1.68047837]
[1764692189352,0.05130585,138.65,138.63,0.05448555]
[1764692190149,6.54230585,138.65,138.63,0.05448555]
[1764692190754,0.05130585,138.65,138.63,0.05448555]
[1764692191549,100.9856,138.63,138.5,3.58]
[1764692191749,100.9959,138.62,138.56,1.67605946]
[1764692192149,100.9959,138.62,138.54,3.58]
[1764692192150,6.4935,138.6,138.54,3.58]
[1764692192350,6.4935,138.6,138.55,3.58]
[1764692192753,0.05339621,138.59,138.56,3.62672131]
[1764692192955,0.05159848,138.59,138.56,3.62783721]
[1764692193146,0.05159848,138.59,138.57,1.67560877]
[1764692193348,100.9493,138.68,138.58,3.58]
[1764692193555,165.2093,138.68,138.59,1.67560877]
[1764692193745,165.2093,138.68,138.58,3.58]
[1764692193746,165.2093,138.68,138.6,1.6752199]
[1764692193947,165.2093,138.68,138.59,1.67531882]
[1764692194155,64.26,138.68,138.6,1.67531882]
[1764692194353,0.05205656,138.65,138.63,0.05059663]
[1764692195755,6.54325656,138.65,138.63,0.05059663]
[1764692195960,0.05205656,138.65,138.63,0.05059663]
[1764692196351,0.05205656,138.65,138.54,3.29]
[1764692196352,100.9931,138.62,138.54,3.29]
[1764692196559,101.0219,138.58,138.49,3.29]
[1764692196854,101.0515,138.54,138.45,3.29]
[1764692197056,101.0741,138.51,138.47,1.6810561]
[1764692197261,101.0806,138.5,138.41,3.29]
[1764692197456,101.0741,138.51,138.32,70.68592084]
[1764692197457,101.0958,138.48,138.32,70.68592084]
[1764692197656,0.05414234,138.44,138.42,0.05043532]
[1764692197854,0.05414234,138.44,138.42,0.04935016]
[1764692198458,0.05414234,138.44,138.42,3.33935016]
[1764692198763,0.05414234,138.44,138.43,4.96712205]
[1764692199058,0.05414234,138.44,138.42,3.32935016]
[1764692199257,0.05414234,138.44,138.42,0.04935016]
[1764692201161,64.22,138.43,138.42,0.04935016]
[1764692201361,0.05414234,138.44,138.42,3.32935016]
[1764692201563,0.05414234,138.44,138.43,4.97326249]
[1764692201860,64.24,138.5,138.43,3.28]
[1764692202057,64.24,138.5,138.44,1.69280653]
[1764692202459,64.24,138.5,138.43,3.28]
[1764692202659,0.04859387,138.48,138.45,0.05016698]
[1764692204162,0.04859387,138.48,138.45,3.33016698]
[1764692204463,0.04859387,138.48,138.45,0.05016698]
[1764692206263,0.04859387,138.48,138.45,3.33016698]
[1764692206457,0.04859387,138.48,138.45,0.05016698]
[1764692207363,64.24859387,138.48,138.45,0.05016698]
[1764692207668,0.04859387,138.48,138.46,3.28]
[1764692208566,101.1758245,138.59,138.48,3.28]
[1764692208767,64.2,138.58,138.5,1.6964359]
[1764692208961,101.1758245,138.59,138.52,3.28]
[1764692208962,14.5558245,138.59,138.52,3.28]
[1764692209465,0.05017878,138.57,138.54,0.04852366]
[1764692210661,0.05017878,138.57,138.54,3.32852366]
[1764692211281,0.05017878,138.57,138.54,0.04852366]
[1764692211772,0.05017878,138.57,138.54,3.32852366]
[1764692212077,0.05017878,138.57,138.56,3.28]
[1764692212476,0.05017878,138.57,138.54,0.04852366]
[1764692212477,0.05017878,138.57,138.54,3.32852366]
[1764692213077,0.05017878,138.57,138.55,1.69250561]
[1764692213278,0.05017878,138.57,138.55,1.6911349]
[1764692213477,0.05017878,138.57,138.56,3.28]
[1764692215179,1.25547919,138.68,138.56,3.28]
[1764692215373,78.6758245,138.68,138.58,1.69150222]
[1764692215982,100.9581,138.67,138.58,1.69150222]
[1764692216172,100.9857,138.63,138.61,0.05215235]
[1764692216374,100.9857,138.63,138.53,3.28]
[1764692216575,64.12,138.62,138.55,1.69402891]
[1764692216777,6.4935,138.6,138.55,1.69402891]
[1764692217075,6.4935,138.6,138.53,3.28]
[1764692217076,6.4935,138.6,138.54,1.69402891]
[1764692217276,0.04642878,138.58,138.56,0.04608514]
[1764692219083,6.54072878,138.58,138.56,0.04608514]
[1764692219475,0.04642878,138.58,138.56,0.04608514]
[1764692220875,0.04642878,138.58,138.56,3.32608514]
[1764692221179,0.04642878,138.58,138.56,0.04608514]
[1764692221381,0.04642878,138.58,138.56,3.32608514]
[1764692222085,101.07122878,138.58,138.49,6.34329759]
[1764692222291,64.04,138.58,138.51,4.9844624]
[1764692222578,64.04,138.58,138.48,6.34329759]
[1764692222579,64.04,138.59,138.52,4.9844624]
[1764692222784,64.04,138.59,138.53,1.7044624]
[1764692222970,14.5558245,138.6,138.53,4.9844624]
[1764692223174,0.05115267,138.58,138.55,0.04699301]
[1764692223977,0.05115267,138.58,138.55,3.32699301]
[1764692224377,14.5558245,138.65,138.57,3.28]
[1764692224674,64.04,138.64,138.54,6.34329759]
[1764692224983,100.9858,138.63,138.56,1.70577142]
[1764692225177,100.9926,138.62,138.54,3.28]
[1764692225378,0.05367545,138.59,138.57,0.04738031]
[1764692228088,0.05367545,138.59,138.51,6.34329759]
[1764692228279,179.5992245,138.61,138.53,1.71001077]
[1764692228482,78.5958245,138.61,138.53,1.71001077]
[1764692228684,179.6014245,138.61,138.53,1.71001077]
[1764692228887,6.4944,138.58,138.53,4.90001077]
[1764692229085,0.04810508,138.57,138.54,0.04959293]
[1764692229485,0.04810508,138.57,138.54,3.23959293]
[1764692229983,0.04810508,138.57,138.54,0.04959293]
[1764692230680,0.04810508,138.57,138.47,12.99585149]
[1764692230681,101.0428,138.56,138.47,6.34329759]
[1764692230885,101.0428,138.56,138.49,1.71314829]
[1764692231074,64.0,138.55,138.5,3.19]
[1764692231476,64.0,138.56,138.5,3.19]
[1764692231682,0.05197203,138.54,138.52,3.23712197]
[1764692231886,0.05447933,138.54,138.52,0.04712197]
[1764692233286,0.05447933,138.54,138.52,3.23712197]
[1764692233482,0.05447933,138.54,138.52,0.04712197]
[1764692234686,6.55067933,138.54,138.52,0.04712197]
[1764692234890,0.05447933,138.54,138.52,0.04712197]
[1764692235286,0.05447933,138.54,138.52,3.23712197]
[1764692235686,0.05447933,138.54,138.52,0.04712197]
[1764692237279,6.55057933,138.54,138.52,0.04712197]
[1764692237880,0.05447933,138.54,138.52,0.04712197]
[1764692238580,8.68871679,138.53,138.45,6.34329759]
[1764692238779,8.68871679,138.53,138.44,3.19]
[1764692238780,8.68871679,138.53,138.46,1.71516276]
[1764692238987,15.18561679,138.53,138.46,1.71516276]
[1764692239186,15.18561679,138.53,138.47,1.71516276]
[1764692239187,8.68871679,138.53,138.47,1.71516276]
[1764692239490,8.68871679,138.53,138.45,3.19]
[1764692239685,0.05262706,138.5,138.48,0.04990709]
[1764692240598,0.05262706,138.5,138.48,3.23990709]
[1764692240991,0.05262706,138.5,138.48,0.04990709]
[1764692241395,0.05262706,138.5,138.48,3.23990709]
[1764692241593,0.05262706,138.5,138.49,4.90898754]
[1764692241794,0.05262706,138.5,138.49,3.19]
[1764692242296,63.92,138.56,138.5,3.19]
[1764692243094,0.04772325,138.54,138.52,0.05008735]
[1764692243597,0.04772325,138.54,138.52,3.24008735]
[1764692244304,0.04772325,138.54,138.53,1.71944929]
[1764692244603,8.68871679,138.59,138.53,4.90944929]
[1764692244803,8.68871679,138.59,138.54,4.90944929]
[1764692245101,8.68871679,138.59,138.53,3.19]
[1764692245290,8.68871679,138.59,138.55,3.19]
[1764692245490,63.9,138.6,138.55,3.19]
[1764692245696,0.05456943,138.58,138.56,0.05242372]
[1764692248098,0.05456943,138.58,138.49,12.99585149]
[1764692248099,0.05456943,138.58,138.5,6.44606486]
[1764692248301,8.68871679,138.53,138.47,6.44606486]
[1764692248598,72.54871679,138.53,138.45,9.63606486]
[1764692248800,72.54871679,138.53,138.47,1.72240461]
[1764692249198,0.04866253,138.51,138.49,0.0534439]
[1764692250207,0.04866253,138.51,138.49,3.2434439]
[1764692250407,0.04866253,138.51,138.49,9.68950876]
[1764692250706,0.04866253,138.51,138.49,3.2434439]
[1764692251098,63.84,138.57,138.5,8.16907125]
[1764692251298,8.68871679,138.56,138.49,6.44606486]
[1764692251505,8.68871679,138.56,138.47,8.58177639]
[1764692251506,8.68871679,138.56,138.47,6.44606486]
[1764692251907,8.68871679,138.56,138.48,8.16919278]
[1764692252210,0.04747034,138.53,138.51,0.0553937]
[1764692253310,10.17618713,138.53,138.45,6.44606486]
[1764692253507,8.68871679,138.53,138.45,6.44606486]
[1764692253706,8.68871679,138.53,138.47,6.44606486]
[1764692254205,0.05170514,138.51,138.49,0.04930546]
[1764692254911,8.68871679,138.5,138.43,6.44606486]
[1764692255102,15.18671679,138.5,138.41,6.44606486]
[1764692255605,8.68871679,138.47,138.41,6.44606486]
[1764692255801,0.05402245,138.45,138.43,0.04686192]
[1764692256104,0.05371539,138.45,138.43,0.0517359]
[1764692257311,0.05371539,138.45,138.43,3.1817359]
[1764692257614,0.05371539,138.45,138.44,4.85239616]
[1764692257811,101.0319,138.57,138.45,3.13]
[1764692257812,8.68871679,138.52,138.45,3.13]
[1764692258011,8.68871679,138.52,138.46,1.72083137]
[1764692258510,8.68871679,138.52,138.46,1.72114608]
[1764692258812,0.04970623,138.5,138.48,0.04929812]
[1764692262408,8.68871679,138.49,138.43,6.44606486]
[1764692262608,8.68871679,138.49,138.42,6.44606486]
[1764692262813,8.68871679,138.49,138.41,9.46606486]
[1764692263014,8.68871679,138.49,138.42,1.72584534]
[1764692263415,0.04683406,138.47,138.44,0.04583532]
[1764692267022,6.54643406,138.47,138.44,0.04583532]
[1764692267331,8.68871679,138.46,138.36,6.44606486]
[1764692267524,8.68871679,138.46,138.37,1.72311013]
[1764692267717,6.5011,138.44,138.37,1.72311013]
[1764692268219,101.1089,138.47,138.37,1.72311013]
[1764692268220,0.0535923,138.42,138.39,4.79255421]
[1764692268426,0.0535923,138.42,138.4,3.02]
[1764692268827,8.68871679,138.49,138.41,6.18118306]
[1764692269126,63.86,138.48,138.41,3.02]
[1764692269718,63.86,138.48,138.39,6.44606486]
[1764692269928,0.0540678,138.45,138.42,0.04835054]
[1764692272323,0.0540678,138.45,138.42,3.06835054]
[1764692272726,0.0540678,138.45,138.44,3.02]
[1764692273231,0.0540678,138.45,138.42,3.06835054]
[1764692273929,0.0540678,138.45,138.43,4.74135467]
[1764692274226,0.0540678,138.45,138.43,3.02]
[1764692274433,72.56871679,138.52,138.44,4.7405055]
[1764692274622,72.56871679,138.52,138.44,3.02]
[1764692274822,72.56871679,138.52,138.45,1.71997619]
[1764692275229,63.88,138.52,138.45,1.71964939]
[1764692275530,63.88,138.52,138.47,0.05525262]
[1764692275531,0.04878045,138.5,138.47,0.05525262]
[1764692275727,0.04878045,138.5,138.47,3.07525262]
[1764692276323,0.04878045,138.5,138.49,3.02]
[1764692276625,109.70031679,138.6,138.49,3.02]
[1764692276626,63.88,138.57,138.49,3.02]
[1764692276826,6.4952,138.56,138.49,3.02]
[1764692277530,0.05309393,138.54,138.51,0.04688817]
[1764692277927,0.05309393,138.54,138.51,3.06688817]
[1764692279622,101.10699393,138.54,138.48,6.44606486]
[1764692279828,109.79571072,138.54,138.44,9.46606486]
[1764692280125,6.4985,138.49,138.44,3.02]
[1764692280318,101.0681,138.52,138.44,3.02]
[1764692280520,63.86,138.53,138.46,3.02]
[1764692280723,0.04964977,138.51,138.48,0.05119531]
[1764692281039,0.04964977,138.51,138.48,3.07119531]
[1764692281329,0.04964977,138.51,138.5,3.02]
[1764692281730,63.86,138.54,138.5,3.02]
[1764692282228,6.4949,138.57,138.5,3.02]
[1764692282428,63.86,138.58,138.51,4.73624056]
[1764692282735,0.05065635,138.56,138.54,3.02]
[1764692282926,0.05422331,138.56,138.54,3.06785903]
[1764692284032,0.05422331,138.56,138.54,0.04785903]
[1764692284533,0.05422331,138.56,138.54,3.06785903]
[1764692285331,63.84,138.59,138.54,3.06785903]
[1764692285828,63.84,138.59,138.56,3.02]
[1764692286133,100.9489,138.68,138.56,3.02]
[1764692286330,63.84,138.67,138.57,4.73200688]
[1764692286535,0.04645836,138.63,138.61,0.04758014]
[1764692287230,101.0143,138.59,138.54,6.44606486]
[1764692287434,164.8543,138.59,138.5,6.44606486]
[1764692287622,6.4953,138.56,138.52,1.71409414]
[1764692287829,72.52871679,138.59,138.52,1.71409414]
[1764692288333,0.05047614,138.57,138.54,0.04615293]
[1764692288935,6.4953,138.56,138.54,0.04615293]
[1764692289131,8.68871679,138.56,138.47,9.40606486]
[1764692289336,8.68871679,138.56,138.48,4.67625112]
[1764692289533,63.82,138.57,138.5,2.96]
[1764692289930,164.8535,138.57,138.5,2.96]
[1764692290128,0.05018053,138.55,138.52,0.04611747]
[1764692294447,6.4962,138.54,138.52,0.04611747]
[1764692294951,6.4978,138.51,138.46,9.40606486]
[1764692295156,63.82,138.5,138.46,2.96]
[1764692295654,63.82,138.53,138.47,4.68081858]
[1764692295837,63.82,138.57,138.49,2.96]
[1764692296152,0.04904177,138.54,138.52,3.01454872]
[1764692296946,63.82,138.6,138.52,3.01454872]
[1764692297247,63.82,138.6,138.52,2.96]
[1764692297959,0.04926519,138.57,138.55,0.05227085]
[1764692298161,0.04926519,138.57,138.55,3.01227085]
[1764692298463,0.04926519,138.57,138.55,0.05227085]
[1764692299560,0.04926519,138.57,138.55,3.01227085]
[1764692300268,0.04926519,138.57,138.55,0.05227085]
[1764692300471,0.04926519,138.57,138.55,3.01227085]
[1764692301356,0.04926519,138.57,138.55,0.05227085]
[1764692301554,0.04926519,138.57,138.55,3.01227085]
[1764692301754,0.04926519,138.57,138.55,0.05227085]
[1764692302459,6.54406519,138.57,138.55,0.05227085]
[1764692304763,101.0587,138.53,138.47,6.44606486]
[1764692304958,101.0587,138.53,138.44,9.40606486]
[1764692304959,63.8,138.52,138.44,9.40606486]
[1764692305155,63.8,138.52,138.45,4.68158765]
[1764692305364,70.2973,138.52,138.45,9.40606486]
[1764692305560,101.0372,138.56,138.45,9.40606486]
[1764692305561,101.0372,138.56,138.46,1.72159449]
[1764692305858,0.04569155,138.52,138.5,0.05057001]
[1764692307266,0.04569155,138.52,138.5,3.01057001]
[1764692307658,14.51461272,138.61,138.51,4.4]
[1764692307860,63.8,138.6,138.52,2.96]
[1764692308059,101.0191,138.59,138.52,2.96]
[1764692308360,101.0191,138.59,138.49,9.40606486]
[1764692308562,101.0191,138.59,138.5,1.71742726]
[1764692308765,0.05267018,138.56,138.53,0.0499963]
[1764692309965,63.8,138.55,138.53,0.0499963]
[1764692310267,70.2957,138.55,138.53,0.0499963]
[1764692310968,6.498,138.5,138.46,6.44606486]
[1764692311267,63.8,138.49,138.45,2.96]
[1764692312055,63.8,138.49,138.46,0.05539095]
[1764692312260,0.0475098,138.48,138.46,0.05539095]
[1764692313068,6.5466098,138.48,138.46,0.05539095]
[1764692314168,6.5466098,138.48,138.46,3.20539095]
[1764692314169,0.0475098,138.48,138.46,3.20539095]
[1764692315662,14.51461272,138.54,138.47,3.15]
[1764692315663,6.4964,138.54,138.47,3.15]
[1764692315867,63.8,138.53,138.47,3.15]
[1764692316066,6.4971,138.52,138.47,3.15]
[1764692316266,63.8,138.53,138.45,3.15]
[1764692316653,63.8,138.53,138.42,6.44606486]
[1764692316654,101.0983,138.48,138.42,6.44606486]
[1764692316860,164.9022,138.47,138.43,1.71322197]
[1764692317071,0.04894398,138.46,138.44,0.05127273]
[1764692317368,6.5006,138.45,138.44,0.05127273]
[1764692317769,0.04894398,138.46,138.44,0.05127273]
[1764692318568,63.84894398,138.46,138.44,0.05127273]
[1764692319166,70.34904398,138.46,138.44,0.05127273]
[1764692319370,164.95974398,138.46,138.38,6.44606486]
[1764692319566,164.95974398,138.46,138.37,9.64606486]
[1764692319763,164.9108,138.46,138.38,1.71925721]
[1764692319978,115.59921272,138.5,138.39,3.2]
[1764692320271,101.1022,138.47,138.39,3.2]
[1764692320465,6.5014,138.43,138.39,3.2]
[1764692320665,6.5014,138.43,138.42,0.05429766]
[1764692320868,63.8,138.42,138.36,3.2]
[1764692321066,6.5023,138.41,138.36,3.2]
[1764692321362,6.5023,138.41,138.4,6.486e-05]
[1764692321569,6.5031,138.39,138.38,0.05405582]
[1764692321976,101.1548,138.4,138.35,8.58177639]
[1764692322175,101.1548,138.4,138.34,8.58177639]
[1764692322375,101.1495,138.41,138.33,11.78177639]
[1764692322574,78.31461272,138.42,138.33,3.2]
[1764692322771,101.1468,138.41,138.33,11.78177639]
[1764692322973,0.05147544,138.38,138.36,0.04922391]
[1764692323274,6.55537544,138.38,138.36,0.04922391]
[1764692323475,0.05147544,138.38,138.32,8.58177639]
[1764692323867,101.1848,138.36,138.3,21.57762788]
[1764692324069,63.82,138.35,138.3,8.58177639]
[1764692324268,63.82,138.34,138.3,8.58177639]
[1764692324571,0.04886528,138.33,138.31,8.6360339]
[1764692324974,0.04886528,138.33,138.31,11.8360339]
[1764692325166,0.04886528,138.33,138.32,8.58177639]
[1764692325667,0.04886528,138.33,138.32,11.78177639]
[1764692325865,101.1327,138.43,138.33,3.2]
[1764692326078,63.82,138.42,138.33,11.86366114]
[1764692326266,6.5029,138.4,138.33,11.86366114]
[1764692326467,14.51461272,138.44,138.34,3.2]
[1764692326674,63.82,138.43,138.34,8.66366114]
[1764692326966,0.05234631,138.4,138.37,0.05552427]
[1764692327172,0.05234631,138.4,138.33,8.66110494]
[1764692327469,101.1395,138.42,138.33,8.66110494]
[1764692327776,101.1629,138.39,138.33,8.66110494]
[1764692327979,115.69841272,138.36,138.18,14.51461272]
[1764692328279,0.04740894,138.28,138.27,1.73419574]
[1764692328469,0.05484173,138.29,138.26,0.05311438]
[1764692328672,0.05048327,138.29,138.26,0.04808702]
[1764692329379,63.84,138.28,138.26,0.04808702]
[1764692329876,0.05048327,138.29,138.26,3.24808702]
[1764692332675,8.89693118,138.38,138.27,4.93367723]
[1764692332875,63.84,138.37,138.3,3.2]
[1764692333782,0.05088888,138.35,138.33,3.2]
[1764692333977,0.05088888,138.35,138.33,3.24812114]
[1764692333978,0.05046277,138.35,138.33,3.24812114]
[1764692335285,0.05046277,138.35,138.33,0.04812114]
[1764692335780,0.05046277,138.35,138.33,3.24812114]
[1764692336582,0.05046277,138.35,138.33,0.04812114]
[1764692336777,6.55576277,138.35,138.33,0.04812114]
[1764692336975,0.05046277,138.35,138.33,0.04812114]
[1764692337783,0.05046277,138.35,138.33,3.24812114]
[1764692338576,6.5016,138.43,138.33,3.24812114]
[1764692338777,6.5016,138.43,138.24,115.78381272]
[1764692338778,63.84,138.42,138.35,3.2]
[1764692339587,0.0538769,138.4,138.37,0.0548725]
[1764692340385,101.1761,138.37,138.27,3.2]
[1764692340587,101.1973,138.34,138.27,3.2]
[1764692340886,63.84,138.34,138.27,3.2]
[1764692341183,63.84,138.35,138.29,3.2]
[1764692341590,0.04737537,138.33,138.31,3.25079489]
[1764692341889,63.84,138.42,138.33,3.2]
[1764692342190,63.84,138.43,138.35,3.2]
[1764692342392,70.3415,138.43,138.35,3.2]
[1764692342688,0.05044985,138.4,138.38,0.05364444]
[1764692343378,6.55324985,138.4,138.38,0.05364444]
[1764692344090,101.1836,138.36,138.26,3.2]
[1764692344285,101.2042,138.33,138.26,3.2]
[1764692344481,101.1979,138.34,138.26,3.2]
[1764692345191,0.05467377,138.31,138.29,0.04988039]
[1764692346278,63.84,138.3,138.29,0.04988039]
[1764692346485,63.84,138.3,138.22,3.2]
[1764692346682,6.509,138.27,138.22,3.2]
[1764692346886,101.2358,138.29,138.22,3.2]
[1764692347391,63.84,138.28,138.22,3.2]
[1764692347592,0.05446688,138.27,138.24,3.25299164]
[1764692347891,0.04979789,138.27,138.24,3.25442628]
[1764692348593,0.04979789,138.27,138.24,0.05442628]
[1764692349096,6.5106,138.24,138.17,3.13]
[1764692349290,63.84,138.23,138.18,4.86719758]